[Event "Late-Titled-Tuesday-Blitz-July-09-2024"]
[Site "Chess.com"]
[Date "2024.07.09"]
[Round "8"]
[White "KNVB"]
[Black "Michalczak"]
[Result "1-0"]
[WhiteElo "2672"]
[BlackElo "2505"]
[TimeControl "180+1"]
[EndTime "15:25:26 PDT"]
[Termination "KNVB won by resignation"]

1. d4 {[%clk 0:03:00.9]} 1... d5 {[%clk 0:02:59]} 2. Bf4 {[%clk 0:02:59.7]} 2...
c5 {[%clk 0:02:55.9]} 3. e3 {[%clk 0:02:56.2]} 3... cxd4 {[%clk 0:02:53.9]} 4.
exd4 {[%clk 0:02:57.1]} 4... Nc6 {[%clk 0:02:53.8]} 5. c3 {[%clk 0:02:57.4]}
5... Bf5 {[%clk 0:02:52.8]} 6. Qb3 {[%clk 0:02:57.4]} 6... Qd7 {[%clk
0:02:49.4]} 7. Nf3 {[%clk 0:02:56.4]} 7... f6 {[%clk 0:02:49.3]} 8. Be2 {[%clk
0:02:26.4]} 8... g5 {[%clk 0:02:45.8]} 9. Bg3 {[%clk 0:02:26.4]} 9... h5 {[%clk
0:02:45.6]} 10. h3 {[%clk 0:02:26.9]} 10... e6 {[%clk 0:02:40.8]} 11. a3 {[%clk
0:02:24.6]} 11... Nh6 {[%clk 0:02:33.4]} 12. O-O {[%clk 0:02:15.9]} 12... Bg6
{[%clk 0:02:30.9]} 13. Re1 {[%clk 0:02:13.8]} 13... Nf5 {[%clk 0:02:31.3]} 14.
c4 {[%clk 0:02:08.8]} 14... Nxg3 {[%clk 0:02:28.2]} 15. fxg3 {[%clk 0:02:08.5]}
15... g4 {[%clk 0:02:25.8]} 16. cxd5 {[%clk 0:02:08.8]} 16... gxf3 {[%clk
0:02:18]} 17. dxc6 {[%clk 0:02:02.9]} 17... Qxd4+ {[%clk 0:02:17.1]} 18. Kh2
{[%clk 0:02:03.7]} 18... fxe2 {[%clk 0:01:29]} 19. Qxe6+ {[%clk 0:01:54.4]}
19... Be7 {[%clk 0:01:27.3]} 20. Rxe2 {[%clk 0:01:43.3]} 20... Qc5 {[%clk
0:01:24.2]} 21. b4 {[%clk 0:01:35.2]} 21... Bf7 {[%clk 0:00:23.1]} 22. Qd7+
{[%clk 0:01:34.8]} 1-0

[Event "Late-Titled-Tuesday-Blitz-July-09-2024"]
[Site "Chess.com"]
[Date "2024.07.09"]
[Round "8"]
[White "Kowarenai"]
[Black "Defenstrator"]
[Result "1-0"]
[WhiteElo "2563"]
[BlackElo "2390"]
[TimeControl "180+1"]
[EndTime "15:25:30 PDT"]
[Termination "Kowarenai won by resignation"]

1. d4 {[%clk 0:03:00.9]} 1... Nf6 {[%clk 0:02:59.5]} 2. Bg5 {[%clk 0:02:58.4]}
2... Ne4 {[%clk 0:02:59]} 3. Bf4 {[%clk 0:02:58.4]} 3... g5 {[%clk 0:02:56.4]}
4. Bc1 {[%clk 0:02:49.7]} 4... g4 {[%clk 0:02:54]} 5. Nd2 {[%clk 0:02:36.9]}
5... Nf6 {[%clk 0:02:40.1]} 6. e4 {[%clk 0:02:32.3]} 6... d5 {[%clk 0:02:40.7]}
7. e5 {[%clk 0:02:30.9]} 7... Nfd7 {[%clk 0:02:37.8]} 8. e6 {[%clk 0:02:23]}
8... Nf6 {[%clk 0:02:35.3]} 9. exf7+ {[%clk 0:02:23.1]} 9... Kxf7 {[%clk
0:02:35.8]} 10. Bd3 {[%clk 0:02:14.1]} 10... c5 {[%clk 0:02:31.8]} 11. c3 {[%clk
0:02:11.8]} 11... Nc6 {[%clk 0:02:29.1]} 12. Ne2 {[%clk 0:02:07.2]} 12... e5
{[%clk 0:02:25.8]} 13. dxe5 {[%clk 0:02:03.1]} 13... Nxe5 {[%clk 0:02:26]} 14.
Nf1 {[%clk 0:02:02.6]} 14... Bg7 {[%clk 0:02:10.1]} 15. Nfg3 {[%clk 0:02:00.6]}
15... h5 {[%clk 0:02:07.8]} 16. Nf5 {[%clk 0:01:52.6]} 16... Re8 {[%clk
0:01:45.3]} 17. Nxg7 {[%clk 0:01:44.6]} 17... Nxd3+ {[%clk 0:01:44.4]} 18. Qxd3
{[%clk 0:01:42.8]} 18... Kxg7 {[%clk 0:01:45.3]} 19. O-O {[%clk 0:01:36.3]}
19... Ne4 {[%clk 0:01:43.8]} 20. Ng3 {[%clk 0:01:27.9]} 20... Nxg3 {[%clk
0:01:33]} 21. fxg3 {[%clk 0:01:28.8]} 21... Qd6 {[%clk 0:01:18]} 22. Bf4 {[%clk
0:01:27]} 22... Qe6 {[%clk 0:01:14.4]} 23. Rae1 {[%clk 0:01:22.7]} 23... Qxe1
{[%clk 0:01:13]} 24. Rxe1 {[%clk 0:01:23.6]} 24... Rxe1+ {[%clk 0:01:13.7]} 25.
Kf2 {[%clk 0:01:24.3]} 25... Re8 {[%clk 0:01:06.2]} 26. Qxd5 {[%clk 0:01:23.2]}
26... Be6 {[%clk 0:01:06.5]} 27. Qg5+ {[%clk 0:01:22.9]} 27... Kf7 {[%clk
0:01:03.4]} 28. Qxh5+ {[%clk 0:01:15.1]} 28... Ke7 {[%clk 0:01:03.8]} 29. Qxc5+
{[%clk 0:01:15.7]} 29... Kd7 {[%clk 0:01:04]} 30. Qd6+ {[%clk 0:01:15.6]} 1-0

[Event "Late-Titled-Tuesday-Blitz-July-09-2024"]
[Site "Chess.com"]
[Date "2024.07.09"]
[Round "8"]
[White "HouseOfDurin"]
[Black "giomar27"]
[Result "1-0"]
[WhiteElo "2311"]
[BlackElo "2408"]
[TimeControl "180+1"]
[EndTime "15:25:36 PDT"]
[Termination "HouseOfDurin won by resignation"]

1. d4 {[%clk 0:03:00.9]} 1... d6 {[%clk 0:02:59.8]} 2. Bg5 {[%clk 0:03:01.2]}
2... h6 {[%clk 0:02:56.8]} 3. Bh4 {[%clk 0:03:00.9]} 3... Bf5 {[%clk 0:02:56]}
4. e3 {[%clk 0:03:00.2]} 4... Nd7 {[%clk 0:02:54]} 5. Bd3 {[%clk 0:03:00.5]}
5... Bxd3 {[%clk 0:02:53]} 6. Qxd3 {[%clk 0:03:01.4]} 6... c5 {[%clk 0:02:52.7]}
7. Nf3 {[%clk 0:02:55.1]} 7... Qb6 {[%clk 0:02:51.9]} 8. Nbd2 {[%clk 0:02:53.5]}
8... g5 {[%clk 0:02:47.6]} 9. Bg3 {[%clk 0:02:52.5]} 9... Bg7 {[%clk 0:02:48.2]}
10. O-O {[%clk 0:02:50.2]} 10... Ngf6 {[%clk 0:02:48.2]} 11. c4 {[%clk
0:02:33.7]} 11... O-O {[%clk 0:02:46.8]} 12. Rab1 {[%clk 0:02:26.3]} 12... Nh5
{[%clk 0:02:46.1]} 13. a3 {[%clk 0:02:09.4]} 13... a5 {[%clk 0:02:44.2]} 14. b3
{[%clk 0:01:50.8]} 14... f5 {[%clk 0:02:36.8]} 15. d5 {[%clk 0:01:21]} 15... f4
{[%clk 0:02:33.2]} 16. exf4 {[%clk 0:01:20.1]} 16... Nxf4 {[%clk 0:02:33]} 17.
Bxf4 {[%clk 0:01:03.1]} 17... Rxf4 {[%clk 0:02:33.9]} 18. Rfe1 {[%clk
0:00:57.6]} 18... Qd8 {[%clk 0:02:33.3]} 19. Re4 {[%clk 0:00:40.8]} 19... Qf8
{[%clk 0:02:31]} 20. Rbe1 {[%clk 0:00:39.6]} 20... Ne5 {[%clk 0:02:26.4]} 21.
Nxe5 {[%clk 0:00:38.7]} 21... Bxe5 {[%clk 0:02:25.3]} 22. Nf3 {[%clk 0:00:38.6]}
22... Rxe4 {[%clk 0:02:23]} 23. Qxe4 {[%clk 0:00:35.7]} 23... Bc3 {[%clk
0:02:18.6]} 24. Re3 {[%clk 0:00:33.5]} 24... Bf6 {[%clk 0:02:18.2]} 25. h4
{[%clk 0:00:15.9]} 25... Qg7 {[%clk 0:02:15.3]} 26. hxg5 {[%clk 0:00:14.3]}
26... hxg5 {[%clk 0:02:16.2]} 27. g4 {[%clk 0:00:09.9]} 27... Ra7 {[%clk
0:02:11]} 28. Kg2 {[%clk 0:00:10]} 28... Ra6 {[%clk 0:02:10.9]} 29. Qe6+ {[%clk
0:00:09.4]} 29... Qf7 {[%clk 0:02:10.5]} 30. Qf5 {[%clk 0:00:09.6]} 30... Qg7
{[%clk 0:02:07.5]} 31. Qc8+ {[%clk 0:00:08.2]} 31... Kh7 {[%clk 0:02:06.8]} 32.
Qxb7 {[%clk 0:00:08.2]} 1-0

[Event "Late-Titled-Tuesday-Blitz-July-09-2024"]
[Site "Chess.com"]
[Date "2024.07.09"]
[Round "8"]
[White "santig8"]
[Black "Payyappat"]
[Result "0-1"]
[WhiteElo "2284"]
[BlackElo "2423"]
[TimeControl "180+1"]
[EndTime "15:25:47 PDT"]
[Termination "Payyappat won by checkmate"]

1. e4 {[%clk 0:03:00.9]} 1... c6 {[%clk 0:02:59.3]} 2. d4 {[%clk 0:03:00.6]}
2... d5 {[%clk 0:03:00.2]} 3. e5 {[%clk 0:03:00.3]} 3... Bf5 {[%clk 0:03:00]} 4.
Bd3 {[%clk 0:02:59]} 4... Bxd3 {[%clk 0:02:59.7]} 5. Qxd3 {[%clk 0:02:59.9]}
5... e6 {[%clk 0:03:00.6]} 6. Nf3 {[%clk 0:02:59.4]} 6... c5 {[%clk 0:02:59.9]}
7. O-O {[%clk 0:02:55.5]} 7... Nc6 {[%clk 0:03:00.4]} 8. c3 {[%clk 0:02:55.4]}
8... Nge7 {[%clk 0:02:57.6]} 9. dxc5 {[%clk 0:02:27.7]} 9... Ng6 {[%clk
0:02:56.9]} 10. Re1 {[%clk 0:02:24.5]} 10... Bxc5 {[%clk 0:02:53.9]} 11. b4
{[%clk 0:02:24.2]} 11... Bb6 {[%clk 0:02:52.7]} 12. a4 {[%clk 0:02:23.7]} 12...
Bc7 {[%clk 0:02:49.8]} 13. b5 {[%clk 0:02:23.5]} 13... Ncxe5 {[%clk 0:02:48.7]}
14. Nxe5 {[%clk 0:02:22]} 14... Nxe5 {[%clk 0:02:48.1]} 15. Qd4 {[%clk
0:02:12.4]} 15... Qf6 {[%clk 0:02:36.8]} 16. Ba3 {[%clk 0:01:25.3]} 16... Qg5
{[%clk 0:02:17.9]} 17. Kh1 {[%clk 0:01:20.3]} 17... Qh5 {[%clk 0:02:04.7]} 18.
Qc5 {[%clk 0:00:59.8]} 18... O-O-O {[%clk 0:01:56.6]} 19. h3 {[%clk 0:00:38.4]}
19... Nd3 {[%clk 0:01:48.5]} 20. Qxa7 {[%clk 0:00:32.5]} 20... Nxe1 {[%clk
0:01:42.7]} 21. Qa8+ {[%clk 0:00:25.6]} 21... Bb8 {[%clk 0:01:32.3]} 22. a5
{[%clk 0:00:14.7]} 22... Qe5 {[%clk 0:01:30.6]} 23. g3 {[%clk 0:00:13.1]} 23...
Qe4+ {[%clk 0:01:30.1]} 24. Kg1 {[%clk 0:00:12.6]} 24... Qg2# {[%clk 0:01:31]}
0-1

[Event "Late-Titled-Tuesday-Blitz-July-09-2024"]
[Site "Chess.com"]
[Date "2024.07.09"]
[Round "8"]
[White "ernestina08chess"]
[Black "AlexanderMatlak"]
[Result "1-0"]
[WhiteElo "2307"]
[BlackElo "2498"]
[TimeControl "180+1"]
[EndTime "15:25:49 PDT"]
[Termination "ernestina08chess won by resignation"]

1. e4 {[%clk 0:03:00.9]} 1... c5 {[%clk 0:02:59.8]} 2. Nf3 {[%clk 0:03:01]} 2...
d6 {[%clk 0:02:59.7]} 3. d4 {[%clk 0:03:01.4]} 3... cxd4 {[%clk 0:03:00.6]} 4.
Nxd4 {[%clk 0:03:01.9]} 4... Nf6 {[%clk 0:03:01]} 5. Nc3 {[%clk 0:03:02.4]} 5...
a6 {[%clk 0:03:01.6]} 6. Bg5 {[%clk 0:03:02.4]} 6... e6 {[%clk 0:03:02]} 7. f4
{[%clk 0:03:02.6]} 7... Nbd7 {[%clk 0:03:02.4]} 8. Qd2 {[%clk 0:02:58.8]} 8...
Qc7 {[%clk 0:03:02]} 9. O-O-O {[%clk 0:02:57.6]} 9... b5 {[%clk 0:03:01.8]} 10.
Bd3 {[%clk 0:02:56.9]} 10... Bb7 {[%clk 0:02:58]} 11. Rhe1 {[%clk 0:02:57.3]}
11... Qb6 {[%clk 0:02:58.3]} 12. Nf3 {[%clk 0:02:20.5]} 12... Rc8 {[%clk
0:02:43.3]} 13. Kb1 {[%clk 0:02:15.8]} 13... b4 {[%clk 0:02:25]} 14. Na4 {[%clk
0:02:07]} 14... Qa5 {[%clk 0:02:25.2]} 15. b3 {[%clk 0:02:06.9]} 15... d5 {[%clk
0:02:14.8]} 16. e5 {[%clk 0:02:01.9]} 16... h6 {[%clk 0:01:50.9]} 17. Bh4 {[%clk
0:01:58.7]} 17... g5 {[%clk 0:01:44.1]} 18. fxg5 {[%clk 0:01:55.8]} 18... hxg5
{[%clk 0:01:43.2]} 19. Bxg5 {[%clk 0:01:54]} 19... Ng4 {[%clk 0:01:28.2]} 20.
Qf4 {[%clk 0:01:50.2]} 20... Nh6 {[%clk 0:01:25.1]} 21. Nd4 {[%clk 0:01:43.4]}
21... Nc5 {[%clk 0:00:47.8]} 22. Nxc5 {[%clk 0:01:42.1]} 22... Qxc5 {[%clk
0:00:44.9]} 23. Rf1 {[%clk 0:01:33.5]} 23... Bg7 {[%clk 0:00:29.1]} 24. Bxh6
{[%clk 0:01:29.7]} 1-0

[Event "Late-Titled-Tuesday-Blitz-July-09-2024"]
[Site "Chess.com"]
[Date "2024.07.09"]
[Round "8"]
[White "Alexander_Khlebovich"]
[Black "ReinisUz"]
[Result "1-0"]
[WhiteElo "2787"]
[BlackElo "2552"]
[TimeControl "180+1"]
[EndTime "15:25:50 PDT"]
[Termination "Alexander_Khlebovich won by resignation"]

1. e4 {[%clk 0:03:00.9]} 1... e5 {[%clk 0:02:59.4]} 2. d4 {[%clk 0:03:00.8]}
2... exd4 {[%clk 0:02:59.3]} 3. Qxd4 {[%clk 0:03:01.6]} 3... Nc6 {[%clk
0:02:59.2]} 4. Qe3 {[%clk 0:03:01.7]} 4... Qf6 {[%clk 0:02:51.1]} 5. Nc3 {[%clk
0:03:00.5]} 5... Bb4 {[%clk 0:02:50.1]} 6. Bd2 {[%clk 0:03:00.7]} 6... Nge7
{[%clk 0:02:48.6]} 7. O-O-O {[%clk 0:02:56.6]} 7... O-O {[%clk 0:02:46.1]} 8. f4
{[%clk 0:02:56.3]} 8... d6 {[%clk 0:02:43.1]} 9. Nf3 {[%clk 0:02:55]} 9... Bg4
{[%clk 0:02:42.4]} 10. Bd3 {[%clk 0:02:49.1]} 10... Rfe8 {[%clk 0:02:39.6]} 11.
h3 {[%clk 0:02:43.3]} 11... Bc5 {[%clk 0:02:39.2]} 12. Qe1 {[%clk 0:02:35.4]}
12... Bd7 {[%clk 0:02:38]} 13. g4 {[%clk 0:02:31.1]} 13... g6 {[%clk 0:02:35.7]}
14. Qg3 {[%clk 0:02:26]} 14... a6 {[%clk 0:02:31.5]} 15. g5 {[%clk 0:02:23.9]}
15... Qg7 {[%clk 0:02:31.1]} 16. h4 {[%clk 0:02:24.3]} 16... b5 {[%clk 0:02:29]}
17. h5 {[%clk 0:02:18.1]} 17... b4 {[%clk 0:02:28.3]} 18. Ne2 {[%clk 0:02:17.4]}
18... d5 {[%clk 0:02:16.6]} 19. hxg6 {[%clk 0:02:00.2]} 19... hxg6 {[%clk
0:02:13.5]} 20. e5 {[%clk 0:01:52.1]} 20... Bf5 {[%clk 0:02:06.4]} 21. Nh4
{[%clk 0:01:48.7]} 21... Bxd3 {[%clk 0:02:03]} 22. Qxd3 {[%clk 0:01:49.6]} 22...
a5 {[%clk 0:01:59.6]} 23. Rh3 {[%clk 0:01:46.9]} 23... Nd8 {[%clk 0:01:52.9]}
24. Rdh1 {[%clk 0:01:33.5]} 24... Ne6 {[%clk 0:01:52.7]} 25. f5 {[%clk
0:01:33.7]} 25... gxf5 {[%clk 0:01:52.5]} 26. Nxf5 {[%clk 0:01:33]} 26... Nxf5
{[%clk 0:01:49.1]} 27. Qxf5 {[%clk 0:01:32.2]} 27... Nf8 {[%clk 0:01:49.7]} 28.
Qf6 {[%clk 0:01:24.9]} 28... Ng6 {[%clk 0:01:35.2]} 29. Nf4 {[%clk 0:01:19.8]}
29... Qxf6 {[%clk 0:01:28]} 30. gxf6 {[%clk 0:01:13.7]} 30... Ra6 {[%clk
0:00:46.1]} 31. Nxg6 {[%clk 0:01:10.6]} 1-0

[Event "Late-Titled-Tuesday-Blitz-July-09-2024"]
[Site "Chess.com"]
[Date "2024.07.09"]
[Round "8"]
[White "baki83"]
[Black "merinasian"]
[Result "1-0"]
[WhiteElo "2832"]
[BlackElo "2466"]
[TimeControl "180+1"]
[EndTime "15:25:51 PDT"]
[Termination "baki83 won by resignation"]

1. e4 {[%clk 0:03:00.9]} 1... d6 {[%clk 0:02:54.6]} 2. d4 {[%clk 0:02:59.9]}
2... Nd7 {[%clk 0:02:52.8]} 3. Nc3 {[%clk 0:02:59]} 3... g6 {[%clk 0:02:52.9]}
4. g3 {[%clk 0:02:58.8]} 4... Bg7 {[%clk 0:02:53]} 5. Bg2 {[%clk 0:02:59.4]}
5... e5 {[%clk 0:02:53.2]} 6. Nge2 {[%clk 0:03:00]} 6... Ne7 {[%clk 0:02:53.3]}
7. h3 {[%clk 0:02:59.9]} 7... O-O {[%clk 0:02:53.7]} 8. Be3 {[%clk 0:02:59.8]}
8... f5 {[%clk 0:02:50.1]} 9. O-O {[%clk 0:02:45.9]} 9... fxe4 {[%clk
0:02:45.8]} 10. Nxe4 {[%clk 0:02:35.4]} 10... Nf5 {[%clk 0:02:45.8]} 11. Bg5
{[%clk 0:02:35.2]} 11... Qe8 {[%clk 0:02:42.1]} 12. d5 {[%clk 0:02:23.7]} 12...
h6 {[%clk 0:02:39]} 13. Bc1 {[%clk 0:02:22.4]} 13... Nf6 {[%clk 0:02:14.7]} 14.
Nxf6+ {[%clk 0:02:17.5]} 14... Rxf6 {[%clk 0:02:09]} 15. c4 {[%clk 0:02:17]}
15... Nd4 {[%clk 0:02:02.5]} 16. Nxd4 {[%clk 0:02:10.5]} 16... exd4 {[%clk
0:02:02.7]} 17. Qxd4 {[%clk 0:01:59.1]} 17... Re6 {[%clk 0:01:38.9]} 18. Qd1
{[%clk 0:01:33.4]} 18... Re2 {[%clk 0:01:38]} 19. Bf3 {[%clk 0:01:30.9]} 19...
Re7 {[%clk 0:01:10.6]} 20. Kh2 {[%clk 0:01:19.2]} 20... Bf5 {[%clk 0:01:05.7]}
21. a4 {[%clk 0:01:13.1]} 21... Qd7 {[%clk 0:01:01.9]} 22. Bg2 {[%clk
0:01:05.1]} 22... Rae8 {[%clk 0:01:01.3]} 23. Ra3 {[%clk 0:01:04.6]} 23... Re2
{[%clk 0:01:00.7]} 24. Re3 {[%clk 0:01:00.4]} 24... Bc2 {[%clk 0:00:45.5]} 25.
Qxe2 {[%clk 0:00:59.3]} 1-0

[Event "Late-Titled-Tuesday-Blitz-July-09-2024"]
[Site "Chess.com"]
[Date "2024.07.09"]
[Round "8"]
[White "tptagain"]
[Black "krzyzan94"]
[Result "1-0"]
[WhiteElo "3045"]
[BlackElo "2780"]
[TimeControl "180+1"]
[EndTime "15:25:53 PDT"]
[Termination "tptagain won by resignation"]

1. d4 {[%clk 0:02:47.3]} 1... Nf6 {[%clk 0:02:59.5]} 2. Nf3 {[%clk 0:02:47.9]}
2... e6 {[%clk 0:02:56.7]} 3. Bg5 {[%clk 0:02:47.9]} 3... c5 {[%clk 0:02:55.6]}
4. d5 {[%clk 0:02:47.8]} 4... d6 {[%clk 0:02:52.7]} 5. Bxf6 {[%clk 0:02:38.9]}
5... Qxf6 {[%clk 0:02:49.9]} 6. Nc3 {[%clk 0:02:39.8]} 6... e5 {[%clk 0:02:48]}
7. e4 {[%clk 0:02:40]} 7... g6 {[%clk 0:02:43.7]} 8. Bb5+ {[%clk 0:02:39.7]}
8... Nd7 {[%clk 0:02:42.4]} 9. a4 {[%clk 0:02:39.8]} 9... h5 {[%clk 0:02:35.1]}
10. Nd2 {[%clk 0:02:39.4]} 10... Bh6 {[%clk 0:02:33.9]} 11. Nc4 {[%clk
0:02:36.2]} 11... O-O {[%clk 0:02:31.6]} 12. a5 {[%clk 0:02:33.5]} 12... Qe7
{[%clk 0:02:27.8]} 13. a6 {[%clk 0:02:32.2]} 13... Nf6 {[%clk 0:02:13.3]} 14.
axb7 {[%clk 0:02:27.3]} 14... Bxb7 {[%clk 0:02:10]} 15. Bc6 {[%clk 0:02:21.7]}
15... h4 {[%clk 0:01:21.7]} 16. O-O {[%clk 0:02:06.4]} 16... Nh5 {[%clk
0:01:18.1]} 17. Bxb7 {[%clk 0:02:06.2]} 17... Qxb7 {[%clk 0:01:18.1]} 18. Nxd6
{[%clk 0:02:05.8]} 18... Qxb2 {[%clk 0:01:05.1]} 19. Ndb5 {[%clk 0:02:02.5]}
19... Qb4 {[%clk 0:00:46.2]} 20. Ra4 {[%clk 0:01:59.7]} 20... Qb2 {[%clk
0:00:46.1]} 21. Qb1 {[%clk 0:01:36.8]} 21... Qxb1 {[%clk 0:00:44.8]} 22. Rxb1
{[%clk 0:01:37.7]} 22... a6 {[%clk 0:00:35.1]} 23. Rba1 {[%clk 0:01:33.1]} 23...
Bd2 {[%clk 0:00:25.8]} 24. Rxa6 {[%clk 0:01:32.8]} 24... Rab8 {[%clk 0:00:24.6]}
25. g3 {[%clk 0:01:24.4]} 25... h3 {[%clk 0:00:22.8]} 26. Kf1 {[%clk 0:01:22.2]}
26... Nf6 {[%clk 0:00:19.9]} 27. Rxf6 {[%clk 0:01:21.4]} 1-0

[Event "Late-Titled-Tuesday-Blitz-July-09-2024"]
[Site "Chess.com"]
[Date "2024.07.09"]
[Round "8"]
[White "CarlosjPineror"]
[Black "MusicCityMaster"]
[Result "1-0"]
[WhiteElo "2661"]
[BlackElo "2504"]
[TimeControl "180+1"]
[EndTime "15:26:02 PDT"]
[Termination "CarlosjPineror won by checkmate"]

1. b3 {[%clk 0:03:00.9]} 1... d5 {[%clk 0:02:58.7]} 2. Bb2 {[%clk 0:03:00.9]}
2... Qd6 {[%clk 0:02:59.2]} 3. Nf3 {[%clk 0:03:00.9]} 3... Nd7 {[%clk
0:02:58.2]} 4. e3 {[%clk 0:03:00.4]} 4... e5 {[%clk 0:02:57.7]} 5. c4 {[%clk
0:03:01]} 5... c6 {[%clk 0:02:57.7]} 6. cxd5 {[%clk 0:02:57.9]} 6... cxd5 {[%clk
0:02:56.5]} 7. Nc3 {[%clk 0:02:58.3]} 7... a6 {[%clk 0:02:55.9]} 8. Be2 {[%clk
0:02:53.5]} 8... Ngf6 {[%clk 0:02:50.1]} 9. O-O {[%clk 0:02:53.3]} 9... e4
{[%clk 0:02:48.8]} 10. Nd4 {[%clk 0:02:50.7]} 10... Ne5 {[%clk 0:02:48.9]} 11.
f4 {[%clk 0:02:42.3]} 11... exf3 {[%clk 0:02:44.6]} 12. Nxf3 {[%clk 0:02:40.4]}
12... Neg4 {[%clk 0:02:36.8]} 13. h3 {[%clk 0:02:33]} 13... h5 {[%clk
0:02:36.8]} 14. Bd3 {[%clk 0:02:05.4]} 14... Be7 {[%clk 0:02:22.3]} 15. Ne2
{[%clk 0:02:05.8]} 15... Nh6 {[%clk 0:01:57.3]} 16. Ne5 {[%clk 0:01:57.2]} 16...
Be6 {[%clk 0:01:47.2]} 17. Bd4 {[%clk 0:01:55.1]} 17... O-O {[%clk 0:01:35.8]}
18. Nf4 {[%clk 0:01:49.1]} 18... h4 {[%clk 0:01:20.3]} 19. Nh5 {[%clk
0:01:42.6]} 19... Rfc8 {[%clk 0:00:39.5]} 20. Qf3 {[%clk 0:01:28.3]} 20... Rc6
{[%clk 0:00:19.7]} 21. Nxc6 {[%clk 0:01:23]} 21... bxc6 {[%clk 0:00:16.7]} 22.
Nxf6+ {[%clk 0:01:20.3]} 22... gxf6 {[%clk 0:00:15.5]} 23. Bxf6 {[%clk
0:01:21.2]} 23... Bxf6 {[%clk 0:00:15.7]} 24. Qxf6 {[%clk 0:01:22.1]} 24... Qg3
{[%clk 0:00:11.9]} 25. Qxh6 {[%clk 0:01:17.1]} 25... Bxh3 {[%clk 0:00:12.1]} 26.
Qh7+ {[%clk 0:01:15.9]} 26... Kf8 {[%clk 0:00:12]} 27. Qxf7# {[%clk 0:01:16.8]}
1-0

[Event "Late-Titled-Tuesday-Blitz-July-09-2024"]
[Site "Chess.com"]
[Date "2024.07.09"]
[Round "8"]
[White "vellottiwizard"]
[Black "Hikaru"]
[Result "0-1"]
[WhiteElo "2765"]
[BlackElo "3218"]
[TimeControl "180+1"]
[EndTime "15:26:19 PDT"]
[Termination "Hikaru won by resignation"]

1. e4 {[%clk 0:02:57.5]} 1... d5 {[%clk 0:03:00]} 2. e5 {[%clk 0:02:57.6]} 2...
c5 {[%clk 0:02:58.8]} 3. f4 {[%clk 0:02:51.3]} 3... Bf5 {[%clk 0:02:56.6]} 4.
Nf3 {[%clk 0:02:51]} 4... e6 {[%clk 0:02:55.1]} 5. d4 {[%clk 0:02:44.4]} 5...
Nc6 {[%clk 0:02:54]} 6. c3 {[%clk 0:02:42]} 6... Qb6 {[%clk 0:02:49.8]} 7. Qa4
{[%clk 0:02:15.5]} 7... O-O-O {[%clk 0:02:28.7]} 8. Nbd2 {[%clk 0:01:47]} 8...
cxd4 {[%clk 0:02:22.1]} 9. Nxd4 {[%clk 0:01:47.9]} 9... Nxd4 {[%clk 0:02:20.5]}
10. cxd4 {[%clk 0:01:48.5]} 10... Ne7 {[%clk 0:02:18.4]} 11. Nb3 {[%clk
0:01:36.8]} 11... Nc6 {[%clk 0:02:16]} 12. Bd2 {[%clk 0:01:35.1]} 12... Bc2
{[%clk 0:01:53.4]} 13. Rc1 {[%clk 0:01:34.9]} 13... Bxb3 {[%clk 0:01:53.7]} 14.
Qxb3 {[%clk 0:01:27.6]} 14... Qxb3 {[%clk 0:01:53.3]} 15. axb3 {[%clk
0:01:28.5]} 15... Kb8 {[%clk 0:01:52.7]} 16. Bc3 {[%clk 0:01:28.9]} 16... a6
{[%clk 0:01:47.5]} 17. Kf2 {[%clk 0:01:22.8]} 17... b5 {[%clk 0:01:47.1]} 18.
Ke3 {[%clk 0:01:23]} 18... Kb7 {[%clk 0:01:40.3]} 19. Bd3 {[%clk 0:01:21.2]}
19... Be7 {[%clk 0:01:36.7]} 20. Bd2 {[%clk 0:01:21.4]} 20... Rc8 {[%clk
0:01:35]} 21. Rc2 {[%clk 0:01:17.6]} 21... Bd8 {[%clk 0:01:32.4]} 22. Rhc1
{[%clk 0:01:02.6]} 22... Bb6 {[%clk 0:01:31.1]} 23. Rc5 {[%clk 0:01:03.3]} 23...
Bxc5 {[%clk 0:01:24.1]} 24. dxc5 {[%clk 0:01:04.2]} 24... b4 {[%clk 0:01:19]}
25. Ra1 {[%clk 0:01:02.5]} 25... a5 {[%clk 0:01:19.1]} 26. g3 {[%clk 0:00:53.4]}
26... f6 {[%clk 0:01:11.5]} 27. exf6 {[%clk 0:00:52.2]} 27... gxf6 {[%clk
0:01:11.8]} 28. Bf1 {[%clk 0:00:36.1]} 28... Rcd8 {[%clk 0:01:06.1]} 29. Bb5
{[%clk 0:00:33.9]} 29... e5 {[%clk 0:01:04.2]} 30. f5 {[%clk 0:00:33.6]} 30...
Ra8 {[%clk 0:00:55.5]} 31. g4 {[%clk 0:00:32.2]} 31... Nd4 {[%clk 0:00:55.6]}
32. Ba4 {[%clk 0:00:30.7]} 32... Nc2+ {[%clk 0:00:55.8]} 0-1

[Event "Late-Titled-Tuesday-Blitz-July-09-2024"]
[Site "Chess.com"]
[Date "2024.07.09"]
[Round "8"]
[White "Juliana_Figueira"]
[Black "th3d4rkness"]
[Result "1-0"]
[WhiteElo "2031"]
[BlackElo "2244"]
[TimeControl "180+1"]
[EndTime "15:26:22 PDT"]
[Termination "Juliana_Figueira won on time"]

1. d4 {[%clk 0:03:00.9]} 1... Nf6 {[%clk 0:02:59.5]} 2. c4 {[%clk 0:02:59.9]}
2... e6 {[%clk 0:02:59.8]} 3. g3 {[%clk 0:02:59.3]} 3... Bb4+ {[%clk 0:02:58.6]}
4. Bd2 {[%clk 0:02:58.4]} 4... c5 {[%clk 0:02:58.6]} 5. Bxb4 {[%clk 0:02:55.6]}
5... cxb4 {[%clk 0:02:58.4]} 6. Bg2 {[%clk 0:02:55]} 6... d5 {[%clk 0:02:54.2]}
7. Nd2 {[%clk 0:02:51.4]} 7... O-O {[%clk 0:02:53.8]} 8. Ngf3 {[%clk 0:02:46.2]}
8... b6 {[%clk 0:02:49.5]} 9. O-O {[%clk 0:02:45.4]} 9... Bb7 {[%clk 0:02:46.7]}
10. a3 {[%clk 0:02:44.5]} 10... bxa3 {[%clk 0:02:44.8]} 11. Rxa3 {[%clk
0:02:43.2]} 11... dxc4 {[%clk 0:02:36.6]} 12. Nxc4 {[%clk 0:02:42.4]} 12... Qe7
{[%clk 0:02:28.1]} 13. e3 {[%clk 0:02:40.7]} 13... Nbd7 {[%clk 0:02:23.8]} 14.
Qb3 {[%clk 0:02:31.1]} 14... Bd5 {[%clk 0:02:20.3]} 15. Nfd2 {[%clk 0:02:21.5]}
15... Bxg2 {[%clk 0:02:03.2]} 16. Kxg2 {[%clk 0:02:22.4]} 16... e5 {[%clk
0:02:03.6]} 17. Nf3 {[%clk 0:02:05.7]} 17... exd4 {[%clk 0:01:56.8]} 18. exd4
{[%clk 0:02:02.2]} 18... Nd5 {[%clk 0:01:45.4]} 19. Re1 {[%clk 0:01:57.6]} 19...
Qf6 {[%clk 0:01:28]} 20. Nce5 {[%clk 0:01:55.3]} 20... Nxe5 {[%clk 0:01:13.2]}
21. dxe5 {[%clk 0:01:52.3]} 21... Qc6 {[%clk 0:01:11.4]} 22. Kg1 {[%clk
0:01:35.9]} 22... Ne7 {[%clk 0:01:03.2]} 23. e6 {[%clk 0:01:22.6]} 23... fxe6
{[%clk 0:00:45.4]} 24. Rxe6 {[%clk 0:01:19.8]} 24... Rxf3 {[%clk 0:00:16.3]} 25.
Qxf3 {[%clk 0:01:16.7]} 25... Qxe6 {[%clk 0:00:03.6]} 26. Qxa8+ {[%clk
0:01:16.1]} 26... Kf7 {[%clk 0:00:01.5]} 27. Qf3+ {[%clk 0:01:14.9]} 1-0